[Event "7th Sharjah Masters 2024"]
[Site "Sharjah"]
[Date "2024.05.16"]
[Round "3.28"]
[White "Royal, Shreyas"]
[Black "Kuybokarov, Temur"]
[Result "1-0"]
[ECO "D11"]
[WhiteElo "2464"]
[BlackElo "2602"]
[Annotator "TA"]
[PlyCount "133"]
[EventDate "2024.05.13"]
[EventType "swiss"]
[EventCountry "UAE"]
[SourceTitle "playchess.com"]
[Source "ChessBase"]
[SourceQuality "1"]
[TimeControl "5400+30"]

{[%evp 9,132,0,0,0,0,0,10,0,12,6,27,15,30,31,27,25,18,18,29,24,38,35,37,16,45,42,54,23,31,25,32,21,39,16,16,-4,-11,0,0,0,19,12,8,0,0,0,18,0,0,0,0,0,5,-29,0,0,0,0,0,0,0,0,0,0,33,33,32,32,362,145,145,143,139,0,84,84,84,84,84,84,84,84,84,84,84,84,84,84,84,51,84,84,84,51,51,45,84,84,84,84,84,84,84,84,1245,1245,1245,1245,1238,437,240,45,45,45,45,0,0,0,0,0,0,0,29996,29997,29999]} 1. d4 {[%emt 0:00:04]} Nf6 {[%emt 0:00:27]} 2. c4 {[%emt 0:00:08]} c6 {[%emt 0:00:11]} 3. Nf3 {[%emt 0:00:47]} d5 {[%emt 0:00:11]} 4. Nbd2 {[%emt 0:00:38]} Bf5 {[%emt 0:01:49]} 5. Nh4 {[%emt 0:00:20]} Be4 {[%emt 0:02:12]} 6. Qb3 {[%emt 0:01:16]} Qc7 {[%emt 0:04:13]} 7. Nxe4 {[%emt 0:07:38]} (7. cxd5 {feels hotter.} cxd5 8. Nxe4 dxe4 9. Bf4) 7... Nxe4 {[%emt 0:03:32]} 8. Nf3 {[%emt 0:01:21] The position is equal.} (8. e3 {is more complex.} Qa5+ 9. Ke2 Nd7 10. cxd5 Qxd5 11. f3) 8... e6 {[%emt 0:05:36]} 9. Nd2 {[%emt 0:02:19]} Nf6 {[%emt 0:04:38]} 10. g3 {[%emt 0:04:39]} g6 {[%emt 0:04:22]} 11. Bg2 {[%emt 0:04:46]} Bg7 {[%emt 0:00:14]} 12. O-O {[%emt 0:00:19]} O-O {[%emt 0:00:33]} 13. Qc2 {[%emt 0:06:55]} a5 {[%emt 0:09:29]} 14. b3 {[%emt 0:06:13]} Na6 {[%emt 0:01:51][%cal Bb8a6,Ba6c7,Bc7e8,Be8f6,Bf6g4][%mdl 32]} 15. Bb2 {[%emt 0:01:25]} Rfd8 {[%emt 0:07:13]} 16. a3 {[%emt 0:03:01]} Rac8 {[%emt 0:04:02]} 17. Rac1 {[%emt 0:00:59]} h5 {[%emt 0:03:40]} 18. h4 {[%emt 0:02:59]} Qe7 {[%emt 0:00:49]} 19. Rfd1 {[%emt 0:06:13]} Nc7 {[%emt 0:08:27]} 20. Bc3 {[%emt 0:06:58]} Ra8 {[%emt 0:00:37]} 21. Qb2 {[%emt 0:03:56]} Nce8 {[%emt 0:01:34]} 22. e4 {[%emt 0:00:41]} dxe4 {[%emt 0:02:10]} 23. Nxe4 {[%emt 0:01:45]} Nxe4 {[%emt 0:01:38]} 24. Bxe4 {[%emt 0:00:02]} Nf6 {[%emt 0:03:16]} 25. Bg2 {[%emt 0:00:26]} Ng4 {[%emt 0:00:21]} 26. Re1 {[%emt 0:03:22][%cal Od4d5]} Qf8 {[%emt 0:02:27]} 27. Rcd1 {[%emt 0:01:28]} Bf6 {[%emt 0:00:47]} 28. d5 {[%emt 0:02:30]} Bxc3 {[%emt 0:00:52]} 29. Qxc3 {[%emt 0:00:01]} Qc5 {[%emt 0:00:32]} 30. Qd4 {[%emt 0:03:36]} Qxa3 {[%emt 0:02:30]} 31. Qb6 {[%emt 0:00:27]} cxd5 {[%emt 0:02:26]} 32. cxd5 {[%emt 0:00:05]} Rd6 {[%emt 0:02:06]} 33. Qxb7 {[%emt 0:00:06]} Rad8 {[%emt 0:00:46][%cal Ba8d8,Bd8d7,Bd7d6,Bd6d1][%mdl 32]} 34. Bf3 {[%emt 0:00:15]} Qc5 {[%emt 0:06:07]} 35. Bxg4 {[%emt 0:00:04]} hxg4 {[%emt 0:00:08]} 36. Qe7 $1 {[%emt 0:02:14][%cal Rd5e6]} (36. dxe6 $2 Rxd1 37. Qxf7+ Kh8 38. Qf6+ Kh7 39. Rxd1 Rxd1+ $19) 36... R8d7 {[%emt 0:03:24]} 37. Qe8+ {[%emt 0:01:39]} Kg7 {[%emt 0:00:16]} 38. dxe6 {[%emt 0:01:25]} fxe6 {[%emt 0:05:13][%mdl 8192]} (38... Rxd1 $14 39. exd7 Rd2 40. Qe5+ (40. d8=B $2 Qxf2+ 41. Kh1 Qh2#) 40... Qxe5 41. Rxe5 Rd1+ 42. Kg2 Rxd7) 39. Rxd6 {[%emt 0:02:28]} (39. Qxd7+ $18 Rxd7 40. Rxd7+ Kf6 41. Rb7) 39... Rxd6 $14 {[%emt 0:00:39][%mdl 4096] Endgame. KQR-KQR} 40. Qe7+ {[%emt 0:03:46]} (40. Rxe6 $6 Rd1+ 41. Re1 Qd5 $14) 40... Kg8 {[%emt 0:00:27]} 41. Qe8+ {[%emt 0:00:24]} ({Of course not} 41. Rxe6 $6 Rd1+ 42. Kg2 Qd5+ 43. Re4 Re1 44. Qe8+ Kg7 45. Qe7+ Kg8 46. Qe8+ Kg7 47. Qe7+ Kh8 48. Qf6+ Kg8 49. Qxg6+ Kf8 50. Qf6+ (50. Qe8+ Kg7 $11) 50... Kg8 51. Qg6+ Kf8 52. Qf6+ (52. Qe8+ Kg7 $11) 52... Kg8 53. Qg6+ $11) (41. Rf1 $142 $1) 41... Kg7 $16 {[%emt 0:00:11]} 42. Rxe6 {[%emt 0:00:33] White is more active.} Rd1+ {[%emt 0:01:13]} 43. Re1 {[%emt 0:00:15]} Qd5 {[%emt 0:00:41]} 44. Qe7+ {[%emt 0:02:22]} (44. Rxd1 {simplifies} Qxd1+ 45. Kh2 Qxb3 46. Qe5+) 44... Kg8 {[%emt 0:00:16]} 45. Kh2 {[%emt 0:00:16] White wants to mate with Qe8+.} (45. Rxd1 {simplifies} Qxd1+ 46. Kh2 Qxb3 47. Qe8+) 45... Rxe1 {[%emt 0:00:24]} 46. Qxe1 {[%emt 0:00:02]} Qxb3 {[%emt 0:00:26]} 47. Qxa5 {[%emt 0:00:19] Strongly threatening Qd8+. KQ-KQ} Qf3 {[%emt 0:00:58]} 48. Qa7 {[%emt 0:05:24]} Qf5 {[%emt 0:00:38]} 49. Qb8+ {[%emt 0:00:40]} Kf7 {[%emt 0:02:00]} 50. Qc7+ {[%emt 0:01:40]} Kf6 {[%emt 0:00:09]} 51. Qb6+ {[%emt 0:01:11]} Kg7 {[%emt 0:00:41]} 52. Qd4+ {[%emt 0:00:08]} Kf7 {[%emt 0:00:13]} 53. Kg2 {[%emt 0:00:36]} Qf3+ {[%emt 0:01:34]} 54. Kf1 {[%emt 0:00:07]} Kg8 {[%emt 0:00:48]} 55. Ke1 {[%emt 0:00:31]} Qf5 {[%emt 0:00:52]} 56. Kd2 {[%emt 0:00:16]} g5 $2 {[%emt 0:00:30][%mdl 8192]} (56... Kf7 $16) 57. hxg5 $1 $18 {[%emt 0:03:46]} Qxg5+ {[%emt 0:00:06]} 58. Qf4 {[%emt 0:00:02]} Qg6 {[%emt 0:02:01]} 59. Qe5 {[%emt 0:01:26]} (59. Ke3 $142 Qa6 60. Qxg4+ Kh7 61. Qe4+ Kh6 62. Qd4) 59... Qh6+ {[%emt 0:01:19] [#]} 60. Kd3 $2 {[%emt 0:00:11]} (60. Qe3 $1 $18 {[%cal Re3h6]} Qd6+ 61. Kc3) 60... Qa6+ $14 {[%emt 0:00:08]} 61. Ke3 {[%emt 0:05:40]} Qa3+ $1 {[%emt 0:00:04]} 62. Kf4 {[%emt 0:00:36]} Qf3+ $1 {[%emt 0:00:07]} 63. Kg5 {[%emt 0:00:04]} Qxf2 {[%emt 0:00:08]} 64. Qb8+ {[%emt 0:01:16]} Kg7 {[%emt 0:00:45]} 65. Qc7+ {[%emt 0:00:36]} Kg8 $2 {[%emt 0:00:08][%mdl 8192] [#]} (65... Qf7 $11 66. Qe5+ Kf8) 66. Kg6 $1 {[%emt 0:00:28][%csl Gg6][%cal Rc7g7]} ({Inferior is} 66. Kxg4 Qd4+ 67. Kg5 Qd2+ 68. Kf5 Qd3+ 69. Kg5 Qe3+ 70. Kf5 Qd3+ 71. Kf6 Qa6+ 72. Kg5 Qb5+ 73. Kf4 Qf1+ 74. Kg5 Qb5+ 75. Kf4 Qf1+ 76. Kg5 Qb5+ $11) 66... Kf8 {[%emt 0:04:51]} 67. Qd8# {[%emt 0:05:57] Weighted Error Value: White=0.31/Black=0.17 (very precise) .  Loses game:     	---       	Black=3      Missed win:     	White=1     	---        Mistake:       	White=1     	---        Inaccurate:     	White=5     	Black=5      OK:         	White=15    	Black=19     Best:        	White=5     	Black=6      Strong:       	White=3     	Black=2} 1-0

[Event "7th Sharjah Masters 2024"]
[Site "Sharjah"]
[Date "2024.05.16"]
[Round "3.29"]
[White "Vakhidov, Jakhongir"]
[Black "Madaminov, Mukhiddin"]
[Result "1-0"]
[ECO "A28"]
[WhiteElo "2599"]
[BlackElo "2506"]
[Annotator "TA"]
[PlyCount "77"]
[EventDate "2024.05.13"]
[EventType "swiss"]
[EventCountry "UAE"]
[SourceTitle "playchess.com"]
[Source "ChessBase"]
[SourceQuality "1"]
[TimeControl "5400+30"]

{[%evp 9,77,-1,4,3,7,15,16,0,4,-4,14,2,11,8,10,0,0,0,0,0,0,0,0,0,0,3,27,10,37,30,18,42,47,44,60,58,76,70,72,79,70,69,60,57,66,63,64,50,108,27,51,45,126,66,42,12,192,192,768,769,711,715,674,391,29992,29990,29996,29997,29997,29998]} 1. c4 {[%emt 0:03:38]} Nf6 {[%emt 0:00:52]} 2. Nc3 {[%emt 0:00:33]} e5 {[%emt 0:00:39]} 3. Nf3 {[%emt 0:00:20]} Nc6 {[%emt 0:00:12]} 4. e4 {[%emt 0:04:04]} Bb4 {[%emt 0:00:50]} 5. d3 {[%emt 0:00:09]} d6 {[%emt 0:00:27]} 6. a3 {[%emt 0:01:30]} Bc5 {[%emt 0:00:08]} 7. b4 {[%emt 0:00:06]} Bb6 {[%emt 0:00:07]} 8. Na4 {[%emt 0:01:08] The position is equal.} Bd4 {[%emt 0:01:13]} 9. Rb1 {[%emt 0:00:12]} Bg4 {[%emt 0:00:32]} 10. Be2 {[%emt 0:00:08] And now Nxd4 would win.} Bxf3 {[%emt 0:00:25]} 11. Bxf3 {[%emt 0:00:08]} a6 {[%emt 0:00:58]} 12. Qd2 {[%emt 0:00:08]} O-O {[%emt 0:00:53]} 13. O-O {[%emt 0:00:18]} Ba7 {[%emt 0:00:20]} 14. Nc3 {[%emt 0:00:08]} Nd4 {[%emt 0:00:20]} 15. Bd1 {[%emt 0:00:06]} b5 {[%emt 0:01:22]} 16. Kh1 {[%emt 0:04:25]} c6 {[%emt 0:00:06]} 17. a4 {[%emt 0:00:04]} h6 {[%emt 0:04:27]} 18. axb5 {[%emt 0:10:26]} axb5 {[%emt 0:00:13]} 19. cxb5 {[%emt 0:00:07]} Nxb5 {[%emt 0:01:09]} 20. Nxb5 {[%emt 0:01:39]} cxb5 {[%emt 0:00:09]} 21. Bb2 {[%emt 0:01:39]} d5 {[%emt 0:10:09]} 22. Bxe5 {[%emt 0:42:00]} dxe4 {[%emt 0:00:21]} 23. Bxf6 {[%emt 0:00:34]} Qxf6 {[%emt 0:00:18]} 24. dxe4 {[%emt 0:00:08]} Rad8 {[%emt 0:04:17][%cal Ba8d8,Bd8d4,Bd4b4][%mdl 32]} 25. Qe2 {[%emt 0:03:00]} Rd4 {[%emt 0:05:02]} 26. Bb3 {[%emt 0:04:06]} Qe7 {[%emt 0:05:07]} 27. e5 {[%emt 0:00:17]} Rxb4 {[%emt 0:00:29]} 28. f4 {[%emt 0:02:13]} Kh8 {[%emt 0:00:22]} 29. Bc2 {[%emt 0:04:10]} (29. Qd3 $16) 29... Rd8 {[%emt 0:02:28]} 30. Rbe1 {[%emt 0:08:26]} Qc5 {[%emt 0:02:04] [#]} (30... Bb6 $14) 31. e6 {[%emt 0:04:01]} ({White should play} 31. Bb1 $1 $16) 31... fxe6 $14 {[%emt 0:00:25] aiming for ...Rb2.} 32. f5 {[%emt 0:01:16]} exf5 {[%emt 0:07:01] Black cannot hold the game after this.} (32... Bb8 $11 {and Black has nothing to worry.} 33. fxe6 Rh4) 33. Rxf5 $40 {[%emt 0:00:29][%mdl 128] Qe8+ would kill now. White is out for blood.} Qc8 $2 {[%emt 0:03:53] [#]} (33... Qc4 34. Qe7 Rg8) 34. Rd5 $3 {[%emt 0:02:38][%mdl 512] White wants to mate with Rxd8+.} Rg8 {[%emt 0:01:51] [#]} 35. Qd3 $1 {[%emt 0:00:03]} (35. Rxb5 $2 {perishes.} Rxb5 36. Qd3 g6 37. Qxb5 Qxc2 $19) 35... g6 {[%emt 0:00:02]} 36. Rd7 {[%emt 0:00:59]} (36. Rxb5 $2 {loses.} Rxb5 37. Qxb5 Qxc2 $19) 36... Qc5 {[%emt 0:01:38] Black is weak on the light squares} (36... Bc5 $18 37. Qd2 Rf4 38. Qxf4 Qxd7 39. Qe5+ (39. Qxh6+ Qh7 $18) 39... Kh7 40. Qxc5 Rg7) 37. Rd8 {[%emt 0:01:07] White mates.} Qb6 {[%emt 0:08:29]} 38. Rxg8+ {[%emt 0:00:16]} Kxg8 {[%emt 0:00:05]} 39. Re8+ {[%emt 0:00:07] Weighted Error Value: White=0.20 (precise) /Black=0.40.  Loses game:     	---       	Black=1      Mistake:       	White=2     	Black=2      Inaccurate:     	White=1     	Black=1      OK:         	White=15    	Black=11     Best:        	White=1     	Black=2} 1-0

[Event "7th Sharjah Masters 2024"]
[Site "Sharjah"]
[Date "2024.05.16"]
[Round "3.30"]
[White "Mendonca, Leon Luke"]
[Black "Gholami Orimi, Mahdi"]
[Result "1-0"]
[ECO "B32"]
[WhiteElo "2640"]
[BlackElo "2470"]
[Annotator "TA"]
[PlyCount "87"]
[EventDate "2024.05.13"]
[EventType "swiss"]
[EventCountry "UAE"]
[SourceTitle "playchess.com"]
[Source "ChessBase"]
[SourceQuality "1"]
[TimeControl "5400+30"]

{[%evp 22,87,24,18,29,29,30,35,31,0,6,6,41,22,14,25,86,73,84,73,104,106,122,113,101,129,106,116,289,285,348,342,406,435,953,960,979,906,5834,4929,29943,29965,2093,535,490,490,555,507,537,543,543,534,507,477,479,475,457,444,486,503,589,595,648,624,934,901,1547,1468]} 1. e4 {[%emt 0:00:15]} c5 {[%emt 0:00:15]} 2. Nf3 {[%emt 0:00:13]} a6 {[%emt 0:00:16]} 3. c4 {[%emt 0:03:14]} Nc6 {[%emt 0:00:39]} 4. d4 {[%emt 0:00:59]} cxd4 {[%emt 0:00:25]} 5. Nxd4 {[%emt 0:00:08]} Nf6 {[%emt 0:00:06]} 6. Nc3 {[%emt 0:00:35]} e5 {[%emt 0:00:11]} 7. Nc2 {[%emt 0:05:01]} Bc5 {[%emt 0:01:02]} 8. Be3 {[%emt 0:05:50]} Bxe3 {[%emt 0:09:53]} 9. Nxe3 {[%emt 0:00:07]} d6 {[%emt 0:00:24]} 10. Bd3 {[%emt 0:05:20]} O-O {[%emt 0:00:44]} 11. O-O {[%emt 0:00:05]} Be6 {[%emt 0:00:36]} 12. Rc1 {[%emt 0:12:39]} Rc8 {[%emt 0:05:12]} 13. b3 {[%emt 0:02:17]} Kh8 {[%emt 0:19:35]} 14. Kh1 {[%emt 0:03:20]} Nd4 {[%emt 0:07:52] White is slightly better.} 15. f4 {[%emt 0:11:24]} exf4 {[%emt 0:02:23]} 16. Rxf4 {[%emt 0:00:24]} Nd7 {[%emt 0:17:36]} 17. Qh5 {[%emt 0:09:51][%cal Oe4e5] Strongly threatening e5!} Ne5 {[%emt 0:02:30]} 18. Bb1 {[%emt 0:00:37]} g6 {[%emt 0:11:51] Prevents Nf5.} (18... f6 $11) 19. Qh6 $16 {[%emt 0:02:36] Rh4 would now be deadly.} f6 {[%emt 0:01:06] [#] ...Nf7 is the strong threat.} 20. Nf5 $1 {[%emt 0:05:21]} Qd7 {[%emt 0:06:12] Dodges Qg7+} (20... gxf5 21. exf5) 21. Nxd4 $40 {[%emt 0:10:40][%mdl 128] White goes for the king.} Nf7 {[%emt 0:00:02]} 22. Qh4 {[%emt 0:00:14]} (22. Rxf6 $2 {too greedy.} Nxh6 23. Rxe6 Ng4 $19 (23... Rce8 $2 24. Rxe8 Qxe8 25. Nce2 $19)) 22... g5 {[%emt 0:00:02]} 23. Qh5 {[%emt 0:00:38]} gxf4 {[%emt 0:00:04] [#]} 24. e5 $1 {[%emt 0:00:14] White is much more active.} Ng5 {[%emt 0:02:08] A mistake that costs the game.} (24... Nd8 $16 {was worth a try.}) 25. exf6 $18 {[%emt 0:00:48]} Rc5 {[%emt 0:01:35] [#]} 26. Qh6 {[%emt 0:06:01]} Rg8 {[%emt 0:03:43]} 27. h4 {[%emt 0:03:49]} f3 {[%emt 0:04:27]} (27... Qf7 $142 28. hxg5 Rcxg5 29. Qxh7+ Qxh7+ 30. Bxh7 Kxh7) 28. hxg5 {[%emt 0:02:24]} Rgxg5 {[%emt 0:00:23]} 29. Nd5 {[%emt 0:01:12]} (29. gxf3 $2 {loses.} Rh5+ $19) 29... Rgxd5 {[%emt 0:02:48]} 30. cxd5 {[%emt 0:00:13]} Rxc1+ {[%emt 0:00:18]} 31. Qxc1 {[%emt 0:00:02]} Bxd5 {[%emt 0:00:11]} 32. gxf3 {[%emt 0:04:43]} (32. Qh6 $142 {White wants to mate with Qf8+.} fxg2+ 33. Kg1) 32... Qh3+ {[%emt 0:01:10]} 33. Kg1 {[%emt 0:00:02]} Qg3+ {[%emt 0:00:47]} 34. Kf1 {[%emt 0:00:06]} Qh3+ {[%emt 0:00:25]} 35. Ke2 {[%emt 0:01:25] White threatens Qg5 and mate.} Qg2+ {[%emt 0:00:11]} 36. Kd3 {[%emt 0:00:15]} Qg6+ {[%emt 0:00:08]} 37. Kc3 {[%emt 0:00:35]} Qxf6 {[%emt 0:00:02]} 38. Qh1 {[%emt 0:00:28]} Bg8 {[%emt 0:00:02]} 39. Qh5 {[%emt 0:00:57]} b5 {[%emt 0:00:09][%cal Ob5b4]} 40. Be4 {[%emt 0:02:46]} Qe7 {[%emt 0:01:00][%cal Od6d5]} 41. Kd3 {[%emt 0:00:22]} Qf6 {[%emt 0:01:39]} 42. Qe8 {[%emt 0:00:57]} Qg5 {[%emt 0:00:03]} 43. Qf8 {[%emt 0:00:38][%cal Od4f5]} d5 {[%emt 0:01:22] [#]} 44. Bxd5 $1 {[%emt 0:00:21][%mdl 512] Weighted Error Value: White=0.31/Black=0.48.  Loses game:     	---       	Black=1      Mistake:       	---       	Black=2      Inaccurate:     	---       	Black=3      OK:         	White=12    	Black=7      Best:        	White=4     	Black=4      Strong:       	White=1     	---} 1-0

[Event "7th Sharjah Masters 2024"]
[Site "Sharjah"]
[Date "2024.05.16"]
[Round "3.31"]
[White "Sivuk, Vitaly"]
[Black "Esipenko, Andrey"]
[Result "1/2-1/2"]
[ECO "E56"]
[WhiteElo "2544"]
[BlackElo "2704"]
[Annotator "TA"]
[PlyCount "47"]
[EventDate "2024.05.13"]
[EventType "swiss"]
[EventCountry "UAE"]
[SourceTitle "playchess.com"]
[Source "ChessBase"]
[SourceQuality "1"]
[TimeControl "5400+30"]

{[%evp 18,47,14,-10,0,0,2,0,0,4,12,0,0,-2,0,0,10,0,12,4,12,10,30,0,0,0,0,0,0,0,0,0]} 1. d4 {[%emt 1:31:00]} Nf6 {[%emt 1:31:00]} 2. c4 {[%emt 0:00:30]} e6 {[%emt 0:00:30]} 3. Nc3 {[%emt 0:00:30]} Bb4 {[%emt 0:00:30]} 4. e3 {[%emt 0:00:30]} O-O {[%emt 0:00:30]} 5. Bd3 {[%emt 0:00:30]} d5 {[%emt 0:00:30]} 6. Nf3 {[%emt 0:00:30]} c5 {[%emt 0:00:30]} 7. O-O {[%emt 0:00:30]} dxc4 {[%emt 0:00:30]} 8. Bxc4 {[%emt 0:00:30]} Nc6 {[%emt 0:00:30]} 9. a3 {[%emt 0:00:30]} Ba5 {[%emt 0:00:30]} 10. Ne2 {[%emt 0:00:30]} cxd4 {[%emt 0:00:30]} 11. Nexd4 {[%emt 0:00:30]} Nxd4 {[%emt 0:00:30]} 12. Nxd4 {[%emt 0:00:30]} Bc7 {[%emt 0:00:30][%cal Oc7h2]} 13. Qe2 {[%emt 0:00:30]} Bd7 {[%emt 0:00:30]} 14. Bd2 {[%emt 0:00:30]} Qb8 {[%emt 0:00:30]} 15. h3 {[%emt 0:00:30]} Rc8 {[%emt 0:00:30]} 16. Rfd1 {[%emt 0:00:30]} a6 {[%emt 0:00:30]} 17. Be1 {[%emt 0:00:30]} b5 {[%emt 0:00:30]} 18. Ba2 {[%emt 0:00:30]} Qb7 {[%emt 0:00:30]} 19. Rac1 {[%emt 0:00:30]} Bb6 {[%emt 0:00:30]} 20. Qf3 {[%emt 0:00:30]} Qxf3 {[%emt 0:00:30] The position is equal.} 21. Nxf3 {[%emt 0:00:30]} Rxc1 {[%emt 0:00:30]} 22. Rxc1 {[%emt 0:00:30]} Rc8 {[%emt 0:00:30]} 23. Rxc8+ {[%emt 0:00:30]} Bxc8 {[%emt 0:00:30]} 24. Bc3 {[%emt 0:00:30] An uneventful encounter.   Weighted Error Value: White=0.08 (flawless) /Black=0.05 (flawless) .  Inaccurate:     	White=1     	---        OK:         	White=4     	Black=6} 1/2-1/2

[Event "7th Sharjah Masters 2024"]
[Site "Sharjah"]
[Date "2024.05.16"]
[Round "3.32"]
[White "Nikitenko, Mihail"]
[Black "Yilmaz, Mustafa"]
[Result "1-0"]
[ECO "B90"]
[WhiteElo "2529"]
[BlackElo "2641"]
[Annotator "TA"]
[PlyCount "53"]
[EventDate "2024.05.13"]
[EventType "swiss"]
[EventCountry "UAE"]
[SourceTitle "playchess.com"]
[Source "ChessBase"]
[SourceQuality "1"]
[TimeControl "5400+30"]

{[%evp 16,53,20,0,-7,0,-2,-20,45,0,43,50,45,22,20,17,15,-36,-51,-52,-60,-172,-178,-164,-177,-160,-150,-173,0,0,8,0,797,374,1026,1006,863,781,29986,29987]} 1. e4 {[%emt 0:00:04]} c5 {[%emt 0:00:04]} 2. Nf3 {[%emt 0:00:05]} d6 {[%emt 0:00:02]} 3. d4 {[%emt 0:00:06]} cxd4 {[%emt 0:00:04]} 4. Nxd4 {[%emt 0:00:05]} Nf6 {[%emt 0:00:03]} 5. Nc3 {[%emt 0:00:06]} a6 {[%emt 0:00:03]} 6. Be3 {[%emt 0:00:05]} e5 {[%emt 0:00:15]} 7. Nb3 {[%emt 0:00:05]} Be6 {[%emt 0:00:16]} 8. Qd2 {[%emt 0:00:04]} Nbd7 {[%emt 0:02:03]} 9. f4 {[%emt 0:00:06]} b5 {[%emt 0:03:02]} 10. O-O-O {[%emt 0:00:18]} Be7 {[%emt 0:01:11]} 11. h3 {[%emt 0:00:10]} h5 {[%emt 0:10:27]} (11... O-O $11) 12. Rg1 {[%emt 0:04:01]} h4 {[%emt 0:05:07]} 13. Kb1 {[%emt 0:00:08]} Rc8 {[%emt 0:11:32]} 14. a3 {[%emt 0:00:16]} Qc7 {[%emt 0:08:21]} 15. f5 {[%emt 0:00:44]} Bc4 {[%emt 0:00:46]} 16. g4 {[%emt 0:13:20]} ({White should try} 16. Be2 $11) 16... hxg3 $15 {[%emt 0:03:42]} 17. Rxg3 {[%emt 0:01:10]} d5 $1 {[%emt 0:11:38]} 18. Rxg7 {[%emt 0:15:23] [#]} (18. exd5 $15 Bxf1 19. Rxf1) 18... Bxb3 $1 $19 {[%emt 0:06:43]} (18... d4 19. Bxc4 Qxc4 20. Nxd4 Bxa3 21. Nde2 $11) 19. cxb3 {[%emt 0:11:43][%cal Bc2b3,Bb3b4][%mdl 32]} d4 {[%emt 0:00:13]} (19... dxe4 $2 20. Nd5 Qc6 21. Nxe7 Kxe7 22. Qb4+ Nc5 23. Rc1 $18) 20. Bxd4 {[%emt 0:00:04]} exd4 {[%emt 0:00:04]} 21. Qxd4 {[%emt 0:00:02] [#]} Bxa3 $2 {[%emt 0:20:17]} 22. b4 $1 $11 {[%emt 0:00:38]} Rh4 {[%emt 0:10:42]} 23. Rg2 {[%emt 0:03:19]} Rxh3 $2 {[%emt 0:03:43][%mdl 8192]} (23... Kf8 $11) 24. Nd5 {[%emt 0:01:11]} (24. e5 $142 Rxc3 25. exf6 Rc1+ 26. Rxc1 Qxc1+ 27. Ka2) 24... Nxd5 {[%emt 0:01:04]} (24... Qc6 25. Bd3 (25. bxa3 Nxd5 26. exd5 Rb3+ 27. Ka2 Qc3 $11) 25... Bxb2 (25... Nxd5 $2 26. Rg8+ Nf8 27. exd5 $18) 26. Kxb2 (26. Rxb2 Nxd5 27. exd5 Qc3 $17) 26... Rxd3 27. Qxd3 (27. Rxd3 Qc1+ 28. Ka2 Nxd5 $18) 27... Nxd5 28. Qxd5 Qxd5 29. Rxd5 (29. exd5 Ke7 $18) 29... Rc4) 25. exd5 $18 {[%emt 0:00:06][%cal Be4d5,Bd5d6][%mdl 32]} ({Wrong is} 25. Rg8+ $2 Nf8 26. Qc5 Qxc5 (26... Nxb4 27. Rxf8#) 27. bxc5 Ne3 28. Bxh3 Nxd1 $19) 25... Bxb2 {[%emt 0:01:04]} 26. Qxb2 {[%emt 0:04:48]} ({Not} 26. Rg8+ Nf8 27. Qxb2 (27. Qe4+ $2 Be5 $19) 27... Rh2 $16) 26... Re3 {[%emt 0:00:25]} 27. d6 {[%emt 0:00:29] Weighted Error Value: White=0.62/Black=0.57.  Loses game:     	---       	Black=1      Missed win:     	---       	Black=1      Mistake:       	White=3     	Black=2      Inaccurate:     	White=1     	Black=1      OK:         	White=4     	Black=4      Best:        	---       	Black=1      Strong:       	White=1     	Black=2} 1-0

[Event "7th Sharjah Masters 2024"]
[Site "Sharjah"]
[Date "2024.05.16"]
[Round "3.33"]
[White "Pranav Anand"]
[Black "Sargsyan, Shant"]
[Result "*"]
[ECO "B30"]
[WhiteElo "2532"]
[BlackElo "2637"]
[Annotator "RC"]
[PlyCount "24"]
[EventDate "2024.05.13"]
[EventType "swiss"]
[EventCountry "UAE"]
[SourceTitle "playchess.com"]
[Source "ChessBase"]
[SourceQuality "1"]
[TimeControl "5400+30"]

1. e4 {[%emt 0:01:47]} c5 {[%emt 0:00:30]} 2. Nf3 {[%emt 0:00:30]} Nc6 {[%emt 0:00:48]} 3. Bb5 {[%emt 0:00:00]} e6 {[%emt 0:00:09]} 4. Bxc6 {[%emt 0:00:00]} bxc6 {[%emt 0:00:09]} 5. b3 {[%emt 0:00:00]} f6 {[%emt 0:02:52]} 6. d3 {[%emt 0:00:46]} e5 {[%emt 0:11:31]} 7. Nh4 {[%emt 0:00:26]} Ne7 {[%emt 0:00:16]} 8. f4 {[%emt 0:00:30]} exf4 {[%emt 0:05:45]} 9. Bxf4 {[%emt 0:00:21]} d5 {[%emt 0:00:08]} 10. g3 {[%emt 0:00:11]} g5 {[%emt 0:01:58]} 11. O-O {[%emt 0:00:26]} Kd7 {[%emt 0:00:00]} 12. Qg4+ {[%emt 0:00:30]} Ke8 {[%emt 0:00:30]} *